Cogmind - Beta 13 @@@ ROGUE MODE // 2024.04.07 @ 23:22:06 Player: SovietPaperclip Result: Destroyed by AG-93331 with Assembled Focal Cannon Performance ------------- Evolutions (3) 1500 Regions Visited (12) 2400 Robots Destroyed (81) 405 Value Destroyed (2385) 2385 Prototype IDs (17) 340 Alien Tech Used (0) 0 Bonus (2909) 2909 TOTAL SCORE: 9939 Bonus ------- High Alert Combat Kills 174 Follower Combat Kills 1659 Met Imprinter 300 Destroyed Z-Imprinter 1000 Friendly Fire -224 Cogmind --------- Core Integrity 0/700 Matter 272/300 Energy 99/100 System Corruption 0% Temperature Cool (12) Movement Core (700) Ox13 Location -7/Deep Caves Parts ------- > --- POWER (1) -------- (None) > --- PROPULSION (5) --- (None) > --- UTILITY (5) ------ High-capacity Storage Unit Improved Signal Interpreter > --- WEAPON (2) ------- (None) > --- INVENTORY (20) --- Light Nuclear Core Zionite Light DM Reactor Experimental Heat Sink Zionite Biocell (600) Zionite Biocell (600) High-capacity Matter Pod (200) Structural Scanner Improved Reaction Control System Phase Shifter Phase Shifter Zionite Weapon Casing Hacking Suite Authchip [Propulsion] Authchip [Propulsion] Powered Hammer Peak State ------------ > --- POWER ------------ Zionite Light DM Reactor > --- PROPULSION ------- Gravmag System Zionite Glidesys I Zionite Glidesys I Zionite Glidesys I Zionite Glidesys I > --- UTILITY ---------- Improved Cooling System High-capacity Storage Unit Improved Sensor Array Improved Signal Interpreter Zionite Light Carapace > --- WEAPON ----------- Zionite Laser-S Zionite Phaser-S > --- INVENTORY -------- Light Nuclear Core Zionite Light DM Reactor Zionite Glidesys I Zionite Glidesys I Experimental Heat Sink Zionite Biocell Zionite Biocell High-capacity Matter Pod Structural Scanner Improved Reaction Control System Phase Shifter Phase Shifter Zionite Weapon Casing Zionite Light Carapace Hacking Suite Authchip [Propulsion] Authchip [Propulsion] Heavy Rocket Launcher Powered Hammer [Rating: 75] Favorites ----------- Power Constructs Engine Constructs Power Core Light Nuclear Core Reactor Zionite Light DM Reactor Propulsion Improved Aluminum Leg Treads Light Treads Leg Improved Aluminum Leg Hover Unit Zionite Glidesys I Flight Unit Improved Flight Unit Utility High-capacity Storage Unit Device Armored Scrap Engine Storage High-capacity Storage Unit Processor Improved Signal Interpreter Protection Hardened Light Armor Plating Weapon Cooled Particle Cannon Energy Gun Constructs Energy Cannon Cooled Particle Cannon Ballistic Gun Heavy Assault Rifle Launcher Rocket Launcher Slashing Weapon Katana Build | -11 -10 -10 -9 -9 -9 -7 -7 -7 -7 -7 -7 -7 ------- Run | Yrd Mat Min Mat Sto Rec Fac Was Fac Low Low Zio Dee Slots Evolved 6 | . . . 2 . . 4 . . . . . . Power . | . . . . . . . . . . . . . Propulsion 3 | . . . 1 . . 2 . . . . . . Utility 3 | . . . 1 . . 2 . . . . . . Weapon . | . . . . . . . . . . . . . Parts Attached 86 | 6 2 1 17 14 5 10 1 2 . . 3 25 Power 6 | 1 . 1 2 1 . . . . . . . 1 Engine 3 | 1 . . 2 . . . . . . . . . Core 2 | . . 1 . 1 . . . . . . . . Reactor 1 | . . . . . . . . . . . . 1 Propulsion 24 | 2 . . 4 6 . 1 . . . . 1 10 Treads 8 | 2 . . 4 2 . . . . . . . . Leg 5 | . . . . 3 . 1 . . . . 1 . Wheel . | . . . . . . . . . . . . . Hover 10 | . . . . . . . . . . . . 10 Flight 1 | . . . . 1 . . . . . . . . Utility 24 | 1 2 . 4 2 1 2 . 2 . . . 10 Device 10 | . 1 . . 1 1 2 . 1 . . . 4 Storage 4 | 1 1 . 1 . . . . . . . . 1 Processor 2 | . . . 1 . . . . 1 . . . . Hackware . | . . . . . . . . . . . . . Protection 8 | . . . 2 1 . . . . . . . 5 Artifact . | . . . . . . . . . . . . . Weapon 32 | 2 . . 7 5 4 7 1 . . . 2 4 Energy Gun 2 | . . . . . . . . . . . . 2 Energy Cannon 5 | . . . . 2 . 3 . . . . . . Ballistic Gun 12 | 2 . . 2 3 3 1 . . . . . 1 Ballistic Cannon . | . . . . . . . . . . . . . Launcher 12 | . . . 5 . 1 2 1 . . . 2 1 Special Weapon . | . . . . . . . . . . . . . Impact Weapon . | . . . . . . . . . . . . . Slashing Weapon 1 | . . . . . . 1 . . . . . . Piercing Weapon . | . . . . . . . . . . . . . Special Melee Weapon . | . . . . . . . . . . . . . Unidentified Prototypes 14 | . . . 1 2 . 1 . . . . . 10 Parts Lost 26 | . . . 3 2 . 1 . . . . . 20 Power 3 | . . . . 1 . 1 . . . . . 1 Propulsion 14 | . . . 2 1 . . . . . . . 11 Utility 4 | . . . . . . . . . . . . 4 Weapon 5 | . . . 1 . . . . . . . . 4 Highest Loss Streak 14 | . . . 3 1 . 1 . . . . . 14 To Critical Strikes . | . . . . . . . . . . . . . Average Slot Usage (%) 82 | . 98 100 97 95 74 70 83 75 69 69 70 83 Engine 4 | . 14 2 8 5 . 1 2 . 1 7 7 2 Core 2 | . . 11 2 5 11 4 . . . . . . Reactor 1 | . . . . . . . 4 7 5 . . 3 Treads 7 | . 28 28 32 11 . . . . . . . . Leg 14 | . . . . 20 22 24 30 21 15 15 16 9 Hover 2 | . . . . . . . . . . . . 17 Device 12 | . 12 14 4 4 10 16 23 16 15 15 15 14 Storage 9 | . 14 14 11 11 11 7 7 7 7 7 7 7 Processor 5 | . . . 9 11 . . . 5 7 7 7 7 Protection 1 | . . . 6 6 . . . . . . . 4 Energy Gun 1 | . . . . . . . 2 . . 1 7 5 Energy Cannon 4 | . . . . 3 6 4 7 8 7 7 7 . Ballistic Gun 7 | . 28 28 16 12 10 3 2 . . . . . Ballistic Cannon 1 | . . . . . . . . 2 7 5 . . Launcher 2 | . . . 5 1 . 4 1 2 . . . 7 Naked Turns . | . . . . . . . . . . . . . Heaviest Build 70 | 11 17 19 61 61 57 62 62 62 65 65 64 70 Greatest Support 65 | 40 40 40 60 60 39 52 52 52 33 33 50 65 Greatest Overweight (x) 13 | 3 . . 1 1 2 1 1 2 1 1 1 13 Average Overweight (x) . | . . . . . 1 . 1 1 1 1 1 . Largest Inventory Capacity 20 | 8 10 10 20 20 20 20 20 20 20 20 20 20 Average Capacity 18 | 7 9 10 18 20 20 20 20 20 20 20 20 20 Most Carried 20 | 3 7 8 15 20 20 20 20 20 20 20 20 20 Average Carried 16 | . 3 7 10 17 18 17 19 19 19 20 19 18 Final Capacity 20 | 8 10 10 20 20 20 20 20 20 20 20 20 20 Final Carried 20 | . 7 7 12 16 19 19 20 20 20 20 19 15 Scrap Engine Consumption 52 | . . . . . 20 6 10 6 7 3 . . Constructs Created 7 | . . . . . 4 2 . 1 . . . . Constructs Modified 9 | . . . . . . . 2 3 3 1 . . Class Distribution -------------------- 53% | Mutant 28% | Construct 14% | Scavenger-Mutant 3% | Commander-Mutant Dominant Class ---------------- Mutant | -10/Materials Mutant | -10/Mines Mutant | -9/Materials Mutant | -9/Storage Mutant | -9/Recycling Mutant | -7/Factory Mutant | -7/Waste Mutant | -7/Factory Construct | -7/Lower Caves Construct | -7/Lower Caves Construct | -7/Zion Scavenger-Mutant | -7/Deep Caves Resources | -11 -10 -10 -9 -9 -9 -7 -7 -7 -7 -7 -7 -7 ----------- Run | Yrd Mat Min Mat Sto Rec Fac Was Fac Low Low Zio Dee Matter Collected 2457 | 198 341 116 344 706 122 143 40 30 . 2 10 405 Remotely . | . . . . . . . . . . . . . Salvage Created 3209 | . 626 83 591 846 41 540 . 140 . 41 . 301 Parts 204 | . 43 7 48 57 2 22 . 4 . 3 . 18 Haulers Intercepted 10 | . 2 . 3 3 . 2 . . . . . . Recyclers Shooed 1 | . . . 1 . . . . . . . . . Parts Field Recycled . | . . . . . . . . . . . . . Retrieved Matter . | . . . . . . . . . . . . . Parts Self-Destructed 19 | . . . . . . . . . 16 3 . . Prevented . | . . . . . . . . . . . . . Kills | -11 -10 -10 -9 -9 -9 -7 -7 -7 -7 -7 -7 -7 ------- Run | Yrd Mat Min Mat Sto Rec Fac Was Fac Low Low Zio Dee Combat Hostiles Destroyed 56 | . 8 2 12 11 1 9 . 1 . 1 . 11 Guns 30 | . 8 2 4 10 . . . . . . . 6 Cannons 2 | . . . . 1 . . . . . 1 . . AOE 23 | . . . 8 . 1 9 . . . . . 5 Classes Destroyed 14 | . 6 . 4 . . 1 . . . 1 . 2 Worker 3 | . . . 1 1 . 1 . . . . . . Builder 5 | . 1 . 2 . . 2 . . . . . . Hauler 10 | . 2 . 3 3 . 2 . . . . . . Recycler 7 | . 1 . . 2 . 3 . 1 . . . . Operator 1 | . 1 . . . . . . . . . . . Watcher 5 | . 3 . 2 . . . . . . . . . Swarmer 4 | . . . 3 1 . . . . . . . . Grunt 27 | . 8 2 6 3 . 8 . . . . . . Brawler 1 | . . . 1 . . . . . . . . . Duelist 1 | . . . . . . 1 . . . . . . Sentry 11 | . . . 2 7 1 . . 1 . . . . Hunter 1 | . . . . . . . . . . 1 . . Z-Technician 5 | . . . . . . . . . . . . 5 Z-Light 5 | . . . . . . . . . . . . 5 Assembled 6 | . . . . . . . . . . . . 6 Best Kill Streak 10 | . 2 2 10 4 1 8 . 1 . 1 . 5 Combat Bots Only 7 | . 2 2 7 4 1 4 . 1 . 1 . 3 Max Kills in Single Turn 6 | . 1 1 3 2 1 6 . 1 . 1 . 3 Gunslinging . | . . . . . . . . . . . . . Exploded 3 | . . . 3 . 1 2 . . . . . 1 Melee . | . . . . . . . . . . . . . Uniques/NPCs Destroyed 1 | . . . . . . . . . . . . 1 Z-Imprinter (-7/Deep Caves) Combat | -11 -10 -10 -9 -9 -9 -7 -7 -7 -7 -7 -7 -7 -------- Run | Yrd Mat Min Mat Sto Rec Fac Was Fac Low Low Zio Dee Hostile Shots Fired 275 | . 31 14 53 63 16 15 . 6 . 4 . 73 Missed 82 | . 9 2 16 20 3 6 . 3 . 2 . 21 Damage Taken 4188 | . 308 174 534 820 218 143 . 17 18 23 . 1933 Core 1156 | . 95 43 31 189 44 . . . . . . 754 Absorbed by Shields . | . . . . . . . . . . . . . Regen/Repaired (Parts) 250 | . . . . . 79 . 92 6 24 12 . 37 Core Remaining (%) 59 | 100 . 44 . . 34 . . . . . . . Volleys Fired 239 | 4 39 9 46 76 13 19 . 3 1 2 . 27 Largest 2 | 2 2 2 2 2 2 2 . 2 2 2 . 2 Hottest 120 | 40 40 40 53 91 53 101 . 85 85 85 . 120 Shots Fired 402 | 8 78 18 88 112 15 24 . 4 2 4 . 49 Gun 320 | 8 78 18 75 95 12 . . 1 . . . 33 Cannon 36 | . . . . 10 1 16 . 3 2 4 . . Launcher 46 | . . . 13 7 2 8 . . . . . 16 Special . | . . . . . . . . . . . . . Kinetic 294 | 8 78 18 75 95 12 . . . 1 2 . 5 Thermal 49 | . . . . 10 1 16 . 4 1 2 . 15 Explosive 46 | . . . 13 7 2 8 . . . . . 16 Electromagnetic . | . . . . . . . . . . . . . Phasic 13 | . . . . . . . . . . . . 13 Robot Hit Streak 18 | 3 13 16 18 6 7 5 . 5 1 2 . 4 Robot Miss Streak 7 | 1 2 1 4 4 2 7 . 1 2 1 . 4 Penetration Max 1 | . . . . . . . . . . . . 1 Secondary Targets 1 | . . . . 1 . . . . . . . . Max Gunslinging Chain 1 | . . . . 1 . . . . . . . . Shots Hit Robots 233 | 6 53 16 52 61 11 10 . 3 1 2 . 18 Core Hits 156 | 2 28 6 36 23 2 31 . 1 . 2 . 25 Critical Kills 2 | . 1 . . . . . . 1 . . . . Critical Parts Destroyed 2 | . . . 1 . . . . . . . . 1 Critical Strikes 4 | . 1 . 1 . . . . 1 . . . 1 Meltdown 1 | . . . . . . . . 1 . . . . Destroy 3 | . 1 . 1 . . . . . . . . 1 Melee Attacks 1 | . . . . . . 1 . . . . . . Impact . | . . . . . . . . . . . . . Slashing 1 | . . . . . . 1 . . . . . . Piercing . | . . . . . . . . . . . . . Sneak Attacks . | . . . . . . . . . . . . . Combat Hostiles . | . . . . . . . . . . . . . Follow-up Attacks . | . . . . . . . . . . . . . Damage Inflicted 8491 | 57 589 170 1625 991 164 1907 . 83 15 74 . 2816 Guns 3096 | 57 589 170 505 868 125 . . . . . . 782 Cannons 419 | . . . . 123 . 124 . 83 15 74 . . Explosions 4976 | . . . 1120 . 39 1783 . . . . . 2034 Melee . | . . . . . . . . . . . . . Ramming . | . . . . . . . . . . . . . Kinetic 2769 | 57 589 170 505 868 125 . . . 15 19 . 421 Thermal 1805 | . . . . 123 . 478 . 83 . 55 . 1066 Explosive 3650 | . . . 1018 . 39 1429 . . . . . 1164 Electromagnetic 102 | . . . 102 . . . . . . . . . Impact . | . . . . . . . . . . . . . Slashing . | . . . . . . . . . . . . . Piercing . | . . . . . . . . . . . . . Phasic 165 | . . . . . . . . . . . . 165 Highest Corruption . | . . . . . . . . . . . . . Average Corruption . | . . . . . . . . . . . . . Corruption Purged . | . . . . . . . . . . . . . Corruption Blocked . | . . . . . . . . . . . . . Overload Shots . | . . . . . . . . . . . . . Overflow Damage 442 | . . . 26 . . 211 . . . . . 205 Projectiles 11 | . . . . . . 11 . . . . . . Explosions 431 | . . . 26 . . 200 . . . . . 205 Melee . | . . . . . . . . . . . . . Knockbacks . | . . . . . . . . . . . . . Impact . | . . . . . . . . . . . . . Kinetic . | . . . . . . . . . . . . . Secondary . | . . . . . . . . . . . . . Self-Inflicted Damage 199 | . . . 35 146 18 . . . . . . . Shots 10 | . . . 1 7 2 . . . . . . . Rammed . | . . . . . . . . . . . . . Targets Rammed . | . . . . . . . . . . . . . Kicked . | . . . . . . . . . . . . . Crushed . | . . . . . . . . . . . . . Highest Temperature 186 | . . 5 20 186 5 54 . 9 9 6 . 42 Average Temperature 26 | . . 5 8 35 3 24 . 6 6 3 . 10 Received Heat Transfer 1108 | . 165 102 186 192 45 81 . . . . . 337 Siege Activations . | . . . . . . . . . . . . . Robots Corrupted . | . . . . . . . . . . . . . Combat Hostiles . | . . . . . . . . . . . . . Parts Fried 1 | . . . 1 . . . . . . . . . Impact Corruptions . | . . . . . . . . . . . . . Robots Melted 1 | . . . . . . . . 1 . . . . Combat Hostiles 1 | . . . . . . . . 1 . . . . Parts Melted 3 | . . . . . . . . 3 . . . . Heat Transferred 1088 | . . . . 222 . 422 . 111 . 74 . 259 Parts Sabotaged . | . . . . . . . . . . . . . Parts Stolen . | . . . . . . . . . . . . . Parts Stripped . | . . . . . . . . . . . . . Power Chain Reactions 2 | . . . 2 . . . . . . . . . Alert | -11 -10 -10 -9 -9 -9 -7 -7 -7 -7 -7 -7 -7 ------- Run | Yrd Mat Min Mat Sto Rec Fac Was Fac Low Low Zio Dee Peak Influence 954 | . 226 65 800 548 215 413 78 954 . . . . Initial 299 | . . . 25 299 208 11 78 . . . . . Average 254 | . 86 61 479 447 89 148 53 504 . . . . Maximum Alert Level 3 | . 1 . 3 2 1 2 . 3 . . . . Low Security (%) 50 | 100 91 100 21 . 59 50 100 32 . . . . Level 1 20 | . 8 . 6 35 40 45 . 7 . . . . Level 2 22 | . . . 56 64 . 3 . 23 . . . . Level 3 5 | . . . 14 . . . . 36 . . . . Level 4 . | . . . . . . . . . . . . . Level 5 . | . . . . . . . . . . . . . High Security . | . . . . . . . . . . . . . Max Security . | . . . . . . . . . . . . . Squads Dispatched 15 | . 2 . 3 3 . 1 . 6 . . . . Investigation 5 | . 1 . 2 2 . . . . . . . . Extermination . | . . . . . . . . . . . . . Reinforcement 6 | . 1 . 1 1 . 1 . 2 . . . . Assault 1 | . . . . . . . . 1 . . . . Garrison 3 | . . . . . . . . 3 . . . . Intercept . | . . . . . . . . . . . . . Searches Triggered . | . . . . . . . . . . . . . Construction Impeded 3 | . . . 1 . . 1 . 1 . . . . Haulers Reinforced . | . . . . . . . . . . . . . Active Scanning Responses . | . . . . . . . . . . . . . Cargo Convoy Interrupts . | . . . . . . . . . . . . . Stealth | -11 -10 -10 -9 -9 -9 -7 -7 -7 -7 -7 -7 -7 --------- Run | Yrd Mat Min Mat Sto Rec Fac Was Fac Low Low Zio Dee Distress Signals 10 | . 3 . 2 3 . . . 2 . . . . Communications Jammed . | . . . . . . . . . . . . . Distress Signals . | . . . . . . . . . . . . . Times Spotted 123 | . 15 2 34 24 1 10 . 14 10 1 . 12 Peak Tracking Total 6 | . 3 2 5 4 1 4 . 4 6 1 . 5 Tactical Retreats 3 | . . . . 1 . 1 . . 1 . . . Traps | -11 -10 -10 -9 -9 -9 -7 -7 -7 -7 -7 -7 -7 ------- Run | Yrd Mat Min Mat Sto Rec Fac Was Fac Low Low Zio Dee Traps Triggered 8 | . 2 . 1 3 . 1 . 1 . . . . Indirectly . | . . . . . . . . . . . . . Trap Hack Attempts . | . . . . . . . . . . . . . Triggered . | . . . . . . . . . . . . . Disarmed . | . . . . . . . . . . . . . Reprogrammed . | . . . . . . . . . . . . . Reused . | . . . . . . . . . . . . . Traps Extracted . | . . . . . . . . . . . . . Installed . | . . . . . . . . . . . . . Triggered . | . . . . . . . . . . . . . Machines | -11 -10 -10 -9 -9 -9 -7 -7 -7 -7 -7 -7 -7 ---------- Run | Yrd Mat Min Mat Sto Rec Fac Was Fac Low Low Zio Dee Machines Disabled 24 | . 1 . 5 2 . 7 . 5 . . . 4 Max in Single Turn 4 | . 1 . 1 1 . 4 . . . . . 1 Garrison Access 1 | . . . . 1 . . . . . . . . Machines Repaired . | . . . . . . . . . . . . . Machines Dismantled . | . . . . . . . . . . . . . Machines Sabotaged . | . . . . . . . . . . . . . Overloaded Fab Kills . | . . . . . . . . . . . . . Hacking | -11 -10 -10 -9 -9 -9 -7 -7 -7 -7 -7 -7 -7 --------- Run | Yrd Mat Min Mat Sto Rec Fac Was Fac Low Low Zio Dee Machines Accessed 16 | . . . 3 7 4 1 . . . . 1 . Terminals 12 | . . . 2 6 3 1 . . . . . . Fabricators . | . . . . . . . . . . . . . Repair Stations . | . . . . . . . . . . . . . Recycling Units 1 | . . . . . 1 . . . . . . . Scanalyzers 1 | . . . 1 . . . . . . . . . Garrison Access 1 | . . . . 1 . . . . . . . . Total Hacks 38 | . . . 11 14 8 2 . . . . 3 . Successful 21 | . . . 7 6 4 1 . . . . 3 . Failed 17 | . . . 4 8 4 1 . . . . . . Catastrophic 2 | . . . . 1 1 . . . . . . . Database Lockouts . | . . . . . . . . . . . . . Manual 10 | . . . . 1 . 2 . . . . 7 . Terminals 25 | . . . 4 12 7 2 . . . . . . Fabricators . | . . . . . . . . . . . . . Repair Stations . | . . . . . . . . . . . . . Recycling Units 1 | . . . . . 1 . . . . . . . Scanalyzers 7 | . . . 7 . . . . . . . . . Garrison Access 2 | . . . . 2 . . . . . . . . Terminal Hacks 12 | . . . 1 5 3 . . . . . 3 . Part Schematic 3 | . . . . . . . . . . . 3 . Open Door 1 | . . . . 1 . . . . . . . . Branch Access Points 2 | . . . . 1 1 . . . . . . . Emergency Access Points 1 | . . . 1 . . . . . . . . . Alert Level 1 | . . . . . 1 . . . . . . . Unreport Threat 2 | . . . . 1 1 . . . . . . . Hauler Manifests 1 | . . . . 1 . . . . . . . . Registered Components 1 | . . . . 1 . . . . . . . . Fabricator Hacks . | . . . . . . . . . . . . . Repair Station Hacks . | . . . . . . . . . . . . . Recycling Unit Hacks 1 | . . . . . 1 . . . . . . . Report Inventory 1 | . . . . . 1 . . . . . . . Scanalyzer 6 | . . . 6 . . . . . . . . . Insert Component 3 | . . . 3 . . . . . . . . . Analyze 3 | . . . 3 . . . . . . . . . Garrison Access Hacks 1 | . . . . 1 . . . . . . . . Seal Access 1 | . . . . 1 . . . . . . . . Unauthorized Hacks 1 | . . . . . . 1 . . . . . . Terminals 1 | . . . . . . 1 . . . . . . Botnet 1 | . . . . . . 1 . . . . . . Fabricators . | . . . . . . . . . . . . . Repair Stations . | . . . . . . . . . . . . . Recycling Units . | . . . . . . . . . . . . . Scanalyzers . | . . . . . . . . . . . . . Garrison Access . | . . . . . . . . . . . . . Data Cores Recovered . | . . . . . . . . . . . . . Used . | . . . . . . . . . . . . . Hacking Detections 11 | . . . 3 4 3 1 . . . . . . Full Trace Events 4 | . . . 2 2 . . . . . . . . Feedback Events . | . . . . . . . . . . . . . Feedback Blocked . | . . . . . . . . . . . . . Robot Schematics Acquired 3 | . . . . . . . . . . . 3 . Robots Built . | . . . . . . . . . . . . . Authchips . | . . . . . . . . . . . . . Time . | . . . . . . . . . . . . . Total Robot Build Rating . | . . . . . . . . . . . . . Part Schematics Acquired 20 | . . . 3 . . . . . . . 17 . Parts Built . | . . . . . . . . . . . . . Authchips . | . . . . . . . . . . . . . Time . | . . . . . . . . . . . . . Total Part Build Rating . | . . . . . . . . . . . . . Parts Repaired . | . . . . . . . . . . . . . Time . | . . . . . . . . . . . . . Parts Recycled . | . . . . . . . . . . . . . Recycled Matter . | . . . . . . . . . . . . . Retrieved Matter . | . . . . . . . . . . . . . Retrieved Components . | . . . . . . . . . . . . . Parts Scanalyzed 3 | . . . 3 . . . . . . . . . Part Schematics Acquired 3 | . . . 3 . . . . . . . . . Parts Damaged . | . . . . . . . . . . . . . Bothacking | -11 -10 -10 -9 -9 -9 -7 -7 -7 -7 -7 -7 -7 ------------ Run | Yrd Mat Min Mat Sto Rec Fac Was Fac Low Low Zio Dee Used RIF Installer . | . . . . . . . . . . . . . Robots Hacked . | . . . . . . . . . . . . . Non-combat . | . . . . . . . . . . . . . Combat . | . . . . . . . . . . . . . Robot Hacks Applied . | . . . . . . . . . . . . . Relay Couplers Released . | . . . . . . . . . . . . . Fabnet Peak Effective % . | . . . . . . . . . . . . . Robots Rewired . | . . . . . . . . . . . . . Allies Hacked . | . . . . . . . . . . . . . Hacks Repelled . | . . . . . . . . . . . . . Allies | -11 -10 -10 -9 -9 -9 -7 -7 -7 -7 -7 -7 -7 -------- Run | Yrd Mat Min Mat Sto Rec Fac Was Fac Low Low Zio Dee Total Allies 34 | . . 3 . 10 . . 20 . . . . 1 Largest Group 20 | . . 3 3 10 . . 20 20 12 4 3 4 Highest-Rated Group 529 | . . 40 40 88 . . 529 528 322 104 79 191 Highest-Rated Ally 119 | . . 16 16 16 . . 35 35 31 27 27 119 Total Orders . | . . . . . . . . . . . . . Ally Attacks 358 | . . . 71 51 . . . 112 89 . . 35 Total Damage 8319 | . . . 629 448 . . . 3698 2200 . . 1344 Kills 82 | . . . 18 12 . . . 32 13 . . 7 Allies Corrupted . | . . . . . . . . . . . . . Allies Melted 1 | . . . . . . . . . 1 . . . Intel | -11 -10 -10 -9 -9 -9 -7 -7 -7 -7 -7 -7 -7 ------- Run | Yrd Mat Min Mat Sto Rec Fac Was Fac Low Low Zio Dee Robot Analysis Total . | . . . . . . . . . . . . . Derelict Logs Recovered 4 | . . 1 . . . . . . 1 2 . . Drone Launches . | . . . . . . . . . . . . . Drone Recoveries . | . . . . . . . . . . . . . Exploration | -11 -10 -10 -9 -9 -9 -7 -7 -7 -7 -7 -7 -7 ------------- Run | Yrd Mat Min Mat Sto Rec Fac Was Fac Low Low Zio Dee Turns Passed 9140 | 67 841 253 793 1084 976 564 584 626 642 579 1076 1055 Spaces Moved 4826 | 33 442 141 376 477 441 266 320 334 307 301 560 828 Core 15 | 14 . . . . . . . . . . . 1 Treads 1154 | 19 442 141 376 176 . . . . . . . . Legs 3036 | . . . . 301 441 266 320 334 307 301 560 206 Wheels . | . . . . . . . . . . . . . Hover 621 | . . . . . . . . . . . . 621 Flight . | . . . . . . . . . . . . . Fastest Speed 44 | 50 160 160 160 160 190 116 181 174 174 191 191 44 Average Speed 169 | 136 160 160 163 179 211 181 181 181 186 191 191 108 Slowest Speed 700 | 200 160 160 240 240 260 190 181 235 191 191 194 700 Overloaded Moves . | . . . . . . . . . . . . . Propulsion Burnouts . | . . . . . . . . . . . . . Robots Hopped . | . . . . . . . . . . . . . Cave-ins Triggered . | . . . . . . . . . . . . . Exploration Rate (%) 56 | 4 81 43 54 82 90 11 88 12 55 63 68 81 Regions Visited 12 Branch Regions 7 Pre-discovered Areas . | . . . . . . . . . . . . . Known Exits Taken 6 | . . . 1 1 . . . 1 1 1 1 . Unknown Exits Taken 4 | 1 1 1 . . 1 . . . . . . . Scrap Searched 7 | . . 1 . . . . . . 2 2 2 . Spaces Dug 1 | . . . . . . 1 . . . . . . Terrain Destroyed 243 | . . . 73 18 14 65 . . 1 . . 72 Melee 1 | . . . . . . 1 . . . . . . Projectile 10 | . . . . . . . . . 1 . . 9 AOE 232 | . . . 73 18 14 64 . . . . . 63 Terrain Rammed . | . . . . . . . . . . . . . Walls Destroyed . | . . . . . . . . . . . . . Machines Disabled . | . . . . . . . . . . . . . Actions | -11 -10 -10 -9 -9 -9 -7 -7 -7 -7 -7 -7 -7 --------- Run | Yrd Mat Min Mat Sto Rec Fac Was Fac Low Low Zio Dee Total 5438 | 48 506 152 472 605 471 321 328 353 374 302 562 944 Wait 151 | . 14 . 17 12 . 16 . 5 65 . . 22 Move 4815 | 32 441 140 375 476 440 266 319 333 306 300 559 828 Hop . | . . . . . . . . . . . . . Pick Up 84 | 6 9 1 14 16 4 6 . 4 1 . . 23 Fast Attach 1 | . . . . . . . . . . . 1 . Attach 43 | 6 1 . 8 3 3 4 . . . . . 18 Detach 9 | . . . 1 1 2 . 1 1 . . . 3 Swap 42 | . 1 1 9 11 2 6 1 2 . . 2 7 Drop 52 | . 1 1 2 10 7 3 6 5 1 . . 16 Fire 239 | 4 39 9 46 76 13 19 . 3 1 2 . 27 Melee 1 | . . . . . . 1 . . . . . . Ram . | . . . . . . . . . . . . . Kick . | . . . . . . . . . . . . . Crush . | . . . . . . . . . . . . . Escape Stasis . | . . . . . . . . . . . . . Rewire 1 | . . . . . . . 1 . . . . . Trap . | . . . . . . . . . . . . . Miscellaneous . | . . . . . . . . . . . . . Route ------- -11/Scrapyard -10/Materials (discovered 5 exits: *Mat x3 / [*Min x2]) -10/Mines -9/Materials (discovered 3 exits: [*Mat] / [*Min] / *Sto) -9/Storage -9/Recycling -7/Factory -7/Waste -7/Factory (discovered 2 exits: *Fac / *Low) -7/Lower Caves -7/Lower Caves (discovered 2 exits: *Fac / *Zio) -7/Zion -7/Deep Caves (discovered 1 exit: *Pro) History --------- Turn | Location | Event 13 | -11/Scrapyard | Discovered new exit (range 16) 68 | -11/Scrapyard | Entered Materials 152 | -10/Materials | Discovered new exit (range 12) 187 | -10/Materials | Discovered new exit (range 7) 301 | -10/Materials | Build established: Mutant 460 | -10/Materials | Discovered new exit (range 16) 557 | -10/Materials | Discovered new exit (range 5) 674 | -10/Materials | Discovered new exit (range 3) 909 | -10/Materials | Entered Mines 932 | -10/Mines | Core integrity fell below 50% 1109 | -10/Mines | Assisted by bots powering up and referring to "LRC-V3" 1131 | -10/Mines | Discovered new exit (range 12) 1162 | -10/Mines | Entered Materials 1162 | -9/Materials | Accompanied by 3 allies 1162 | -9/Materials | Evolved 2 slots: Propulsion x1, Utility x1 1369 | -9/Materials | Discovered new exit (range 8) 1431 | -9/Materials | Destroyed 7 combat bots 1654 | -9/Materials | Discovered new exit (range 5) 1836 | -9/Materials | Discovered new exit (range 15) 1908 | -9/Materials | Lost 3 parts (2n1w) 1911 | -9/Materials | Identified exit to Storage 1955 | -9/Materials | Entered Storage 1956 | -9/Storage | Identified exit to Recycling 2211 | -9/Storage | Build established: Scavenger-Mutant 2294 | -9/Storage | Assisted by bots powering up and referring to "LRC-V3" 2594 | -9/Storage | Build established: Commander-Mutant 2649 | -9/Storage | Lost 6 allies 2904 | -9/Storage | Build established: Mutant 2914 | -9/Storage | Core integrity fell below 50% 3010 | -9/Storage | Used back door to open Recycling access 3039 | -9/Storage | Entered Recycling 3047 | -9/Recycling | Found Scrap Engine 3971 | -9/Recycling | Discovered new exit (range 15) 4015 | -9/Recycling | Entered Factory 4015 | -7/Factory | Evolved 4 slots: Propulsion x2, Utility x2 4579 | -7/Factory | Sucked down chute 4579 | -7/Factory | Entered Waste 4580 | -7/Waste | Joined by Warlord forces that had cleared the area 4666 | -7/Waste | Discovered new exit (range 15) 5163 | -7/Waste | Entered Factory 5163 | -7/Factory | Accompanied by 20 allies 5318 | -7/Factory | Discovered new exit (range 16) 5345 | -7/Factory | Identified exit to Lower Caves 5454 | -7/Factory | Lost 3 allies 5542 | -7/Factory | Discovered new exit (range 8) 5562 | -7/Factory | Identified exit to Factory 5563 | -7/Factory | First assault squad dispatched 5582 | -7/Factory | Garrison activated, responded to threat 5611 | -7/Factory | Lost 4 allies 5776 | -7/Factory | Build established: Construct 5789 | -7/Factory | Entered Lower Caves 5789 | -7/Lower Caves | Accompanied by 12 allies 5850 | -7/Lower Caves | Spotted B-75 Beast 5856 | -7/Lower Caves | Identified exit to Lower Caves 5872 | -7/Lower Caves | Allies destroyed B-75 Beast 6235 | -7/Lower Caves | Lost 5 allies 6431 | -7/Lower Caves | Entered another Lower Caves area 6431 | -7/Lower Caves | Accompanied by 4 allies 6451 | -7/Lower Caves | Learned Factory trap positions 6522 | -7/Lower Caves | Discovered exit to Factory (range 13) 6533 | -7/Lower Caves | Learned 8 Factory zone layouts 6895 | -7/Lower Caves | Encountered a Warlord checkpoint 6991 | -7/Lower Caves | Discovered new exit (range 10) 7009 | -7/Lower Caves | Identified exit to Zion 7010 | -7/Lower Caves | Entered Zion 7010 | -7/Zion | Accompanied by 3 allies 7039 | -7/Zion | Acquired unknown access codes intercepted by a Zionite 8044 | -7/Zion | Opened final containment barrier to the Deep Caves 8075 | -7/Zion | Discovered new exit (range 3) 8075 | -7/Zion | Saw the warning signs outside the Deep Caves entrance 8081 | -7/Zion | Identified exit to Deep Caves 8086 | -7/Zion | Entered Deep Caves 8086 | -7/Deep Caves | Accompanied by 3 allies 8088 | -7/Deep Caves | Met 5H-AD0 8296 | -7/Deep Caves | Z-Facility disabled 8335 | -7/Deep Caves | Attacked by Z-Imprinter 8348 | -7/Deep Caves | Allies destroyed Z-Imprinter 8370 | -7/Deep Caves | Found Prototype Protection 8372 | -7/Deep Caves | Identified Zio. Weapon Casing 8629 | -7/Deep Caves | Found Prototype Protection 8638 | -7/Deep Caves | Identified Zio. Heavy Carapace 8672 | -7/Deep Caves | Build established: Scavenger-Mutant 8924 | -7/Deep Caves | Discovered new exit (range 7) 8927 | -7/Deep Caves | Identified exit to Proximity Caves 9019 | -7/Deep Caves | Spotted AG-93331 9050 | -7/Deep Caves | Found Prototype Ballistic Gun 9051 | -7/Deep Caves | Identified 5H-AD0's Sniper Rifle 9079 | -7/Deep Caves | Core integrity fell below 50% 9112 | -7/Deep Caves | Lost 14 parts (1p7n2u4w) 9139 | -7/Deep Caves | Core integrity fell below 20% 9141 | -7/Deep Caves | Destroyed by AG-93331 with Assembled Focal Cannon Last Messages --------------- 09067_ HV Slug penetrates U2-DE8(m). 09067_ Destroyed Wheel. 09067_ HV Slug penetrates AG-93331. 09068_ Imp. Cooling System destroyed. 09068_ Zio. Glidesys I destroyed. 09070_ HV Slug penetrates U2-DE8(m). 09070_ U2-DE8(m) suffers critical hit (Destroy). 09070_ Destroyed Lgt. Angular Momentum Engine. 09071_ 5H-AD0's Sniper Rifle destroyed. 09075_ U2-DE8(m) fits Backup Propulsion III on Cogmind. 09078_ Backup Propulsion III destroyed. 09079_ 5A-S02(M) destroyed. 09081_ Zio. Glidesys I destroyed. 09081_ Hvy. Rocket Launcher destroyed. 09084_ U2-DE8(m) fits Backup Propulsion III on Cogmind. 09128_ Zio. Glidesys I destroyed. 09128_ Imp. Sensor Array destroyed. 09138_ Backup Propulsion III destroyed. Map ----- +----------------------------------------------------+ | | | | | | | | | | | | | | | ?????????????????????????????????????????????????? | | ???????????????######?????????########???????????? | | ??????????????## ##???????## #######???### | | ?????????????## #??????## ## ##?## # | | ?????????????# #??????# ### | | ?????????????# ###??????# | | ????????????## ####?????# ### %% | | ???????????## ##????# ##?# ########" | | ???????????# ##???# #### #??????## | | ???????????# ##??## ## #?????### | | ???????????# #### ##### # #??####"# | | ???????????# ##??## # ####" | | ???????????## #?????# # # % | | ????????????##?###??## ## ## | | ??????????????## ##??### ### ## "# | | ??????????????# #????## ##?# ## ## ### | | ?????????????## #?????# #####??# ## #?? | | ????????????## #####?# m #????### ##### #?? | | ????????????# ###@ " #?#### #??# ##? | | ????????????# #; """ ### #?## ## | | ????????????# " ##> # ###?# # | | ????????????# #########??## | | ????????????### % ## ####### | | ??? ?????## ### | | ? ????# % ##?? | | #????# ###???# | | ##???## ### ### ##?????? | | #????###### #####?### ####????# | | #????????# ##???????# ###### | | [[ #????????## #???????## | | #?????????#### #???????# | | #????????????## #???????# ##### | | #?????????????####G ##?###??## ##???? | | #????????????????# "### ##??## ##????? | | ##???????????????# "## #??## #?????? | | ! ! #???????????????# ### #?## ##?????? | | = #????????????#### ### #?# ##??????? | | = #???????????## ## ## #?# ##??????? | | * ""###"###### #?## ##?????? | | ! #??# ##????# | | !%= #??# ##### | | % #??# | | ################ ##?# | +----------------------------------------------------+ Best States ------------- Heat Dissipation 61 Energy Generation 27 Energy Capacity 865 Matter Stores 300 Matter Capacity 300 Sight Range 16 Robot Scan Range 15 Terrain Scan Density 10 Armor Coverage 1200 Weapon Shielding 100 Evasion (%) 56 Recoil Reduction 3 Authchip Count 2 Item Schematics ----------------- Lrg. Storage Unit | -9/Materials | Scanalyzed Med. Storage Unit | -9/Materials | Scanalyzed Hacking Suite | -9/Materials | Scanalyzed Arc Thrower | -7/Zion | Free Battle Rifle | -7/Zion | Free Flamer | -7/Zion | Free Adv. Signal Interpreter | -7/Zion | Archive Xenon Bombardment Thruster | -7/Zion | Archive Mak. Trap Scanner | -7/Zion | Archive Gatling Laser | -7/Zion | Archive Imp. Field Recycling Unit | -7/Zion | Archive Spk. Medium Treads | -7/Zion | Archive Imp. Hardlight Generator | -7/Zion | Archive Spear | -7/Zion | Archive Coil Gun | -7/Zion | Archive Mak. Hacking Suite | -7/Zion | Archive Mni. Drone Bay | -7/Zion | Archive Cloaking Device | -7/Zion | Archive Arc Projector | -7/Zion | Archive Powered Hammer | -7/Zion | Archive Robot Schematics ------------------ M-28 Smith | -7/Zion | Archive S-27 Virus | -7/Zion | Archive B-48 Gladiator | -7/Zion | Archive Fabricated ------------ Nothing Alien Tech Used ----------------- None Achievements -------------- Are We The Baddies? Generalissimo Signs Are For Wimps We Are Legion Challenges ------------ None Game ------ Seed HeartFlightDissipator Manual? 0 Play Time 01:05:27 Cumulative 55.5 hours Start 2024.04.07 @ 21:42:40 End 2024.04.07 @ 23:22:06 Sessions 2 Manual Loads 0 Difficulty Rogue Special Mode None Game No. 70 Rogue 70 Adventurer 0 Explorer 0 Win Type - Total 1 Types 1/0/0/0/0/0/0/0/0 Lore% 33 Gallery% 35 Achievement% 37 Wizard Run 0 Options --------- Layout 1 ASCII 0 Keyboard 0 Movement Mouse Keybinds 0 Fullscreen 2 Font 32/Smallcaps Map View 50x40 Zoom Use 0% Tactical HUD 1 Map Filters NONE Filters NONE Steam 1 RUN: 9c99677a-482b-4682-bdfa-7ba75533c059